[Event "January 2 Late 2024"]
[Site "https://www.chess.com"]
[Date "2024.01.02"]
[Round "1"]
[White "Thomforde-Toates, Noah"]
[Black "Chyngyz, Sultai"]
[Result "1-0"]
[Board "89"]
[TimeControl "180+1"]
[WhiteFideId "30951992"]
[BlackFideId "13803158"]
[WhiteElo "2741"]
[BlackElo "2419"]
[WhiteTeam "USA"]
[BlackTeam "KGZ"]
[WhiteClock "0:01:49"]
[BlackClock "0:01:47"]

1. d4 {[%clk 0:03:00]}  Nf6 {[%clk 0:02:54]} 2. Nc3 {[%clk 0:03:00]}  d5 {[%clk 0:02:46]} 3. Bf4 {[%clk 0:03:00]}  e6 {[%clk 0:02:41]} 4. e3 {[%clk 0:03:00]}  Be7 {[%clk 0:02:40]} 5. Nf3 {[%clk 0:02:59]}  O-O {[%clk 0:02:41]} 6. Bd3 {[%clk 0:02:59]}  c5 {[%clk 0:02:39]} 7. dxc5 {[%clk 0:03:00]}  Bxc5 {[%clk 0:02:38]} 8. O-O {[%clk 0:03:01]}  Nc6 {[%clk 0:02:34]} 9. e4 {[%clk 0:03:00]}  d4 {[%clk 0:02:34]} 10. Ne2 {[%clk 0:03:00]}  Nh5 {[%clk 0:02:33]} 11. Bd2 {[%clk 0:03:00]}  e5 {[%clk 0:02:33]} 12. h3 {[%clk 0:02:54]}  Be6 {[%clk 0:02:27]} 13. a3 {[%clk 0:02:54]}  Rc8 {[%clk 0:02:26]} 14. b4 {[%clk 0:02:54]}  Be7 {[%clk 0:02:26]} 15. Ng3 {[%clk 0:02:53]}  Nxg3 {[%clk 0:02:26]} 16. fxg3 {[%clk 0:02:54]}  a6 {[%clk 0:02:26]} 17. Qe2 {[%clk 0:02:53]}  Bf6 {[%clk 0:02:22]} 18. Kh2 {[%clk 0:02:52]}  h6 {[%clk 0:02:21]} 19. g4 {[%clk 0:02:51]}  b5 {[%clk 0:02:20]} 20. a4 {[%clk 0:02:50]}  Ne7 {[%clk 0:02:14]} 21. axb5 {[%clk 0:02:50]}  axb5 {[%clk 0:02:14]} 22. g5 {[%clk 0:02:49]}  hxg5 {[%clk 0:02:13]} 23. Nxg5 {[%clk 0:02:50]}  Bc4 {[%clk 0:02:12]} 24. Qg4 {[%clk 0:02:22]}  Bxd3 {[%clk 0:02:11]} 25. Rxf6 {[%clk 0:02:01]}  Ng6 {[%clk 0:02:04]} 26. Rxg6 {[%clk 0:01:53]}  fxg6 {[%clk 0:02:03]} 27. Qe6+ {[%clk 0:01:49]}  Kh8 {[%clk 0:02:02]} 28. Qxg6 {[%clk 0:01:49]}  Bxe4 {[%clk 0:01:51]} 29. Qxe4 {[%clk 0:01:47]}  g6 {[%clk 0:01:48]} 30. Qh4+ {[%clk 0:01:47]}  Kg7 {[%clk 0:01:47]} 31. Qh7+ {[%clk 0:01:48]}  Kf6 {[%clk 0:01:47]} 32. Rf1# {[%clk 0:01:49]} 1-0

[Event "January 2 Late 2024"]
[Site "https://www.chess.com"]
[Date "2024.01.02"]
[Round "1"]
[White "Mazurkiewicz, Michal"]
[Black "Flores, Diego"]
[Result "0-1"]
[Board "92"]
[TimeControl "180+1"]
[WhiteFideId "1124943"]
[BlackFideId "108049"]
[WhiteElo "2415"]
[BlackElo "2737"]
[WhiteTeam "POL"]
[BlackTeam "ARG"]
[WhiteClock "0:00:00"]
[BlackClock "0:00:17"]

1. e4 {[%clk 0:02:59]}  c5 {[%clk 0:02:59]} 2. Nf3 {[%clk 0:02:55]}  e6 {[%clk 0:02:58]} 3. d3 {[%clk 0:02:56]}  Nc6 {[%clk 0:02:58]} 4. g3 {[%clk 0:02:56]}  d5 {[%clk 0:02:53]} 5. Nbd2 {[%clk 0:02:55]}  Bd6 {[%clk 0:02:49]} 6. Bg2 {[%clk 0:02:55]}  Nge7 {[%clk 0:02:49]} 7. O-O {[%clk 0:02:55]}  O-O {[%clk 0:02:49]} 8. Re1 {[%clk 0:02:56]}  Bc7 {[%clk 0:02:37]} 9. c3 {[%clk 0:02:55]}  b6 {[%clk 0:02:34]} 10. e5 {[%clk 0:02:50]}  Ba6 {[%clk 0:02:34]} 11. d4 {[%clk 0:02:50]}  Bd3 {[%clk 0:02:34]} 12. Nf1 {[%clk 0:02:31]}  Bg6 {[%clk 0:02:32]} 13. Bf4 {[%clk 0:02:22]}  cxd4 {[%clk 0:02:13]} 14. Nxd4 {[%clk 0:02:13]}  Nxd4 {[%clk 0:01:55]} 15. cxd4 {[%clk 0:02:13]}  b5 {[%clk 0:01:55]} 16. Ne3 {[%clk 0:02:10]}  Bb6 {[%clk 0:01:54]} 17. Rc1 {[%clk 0:01:51]}  Rc8 {[%clk 0:01:51]} 18. Rxc8 {[%clk 0:01:24]}  Qxc8 {[%clk 0:01:52]} 19. h4 {[%clk 0:01:24]}  h6 {[%clk 0:01:41]} 20. h5 {[%clk 0:01:22]}  Bh7 {[%clk 0:01:41]} 21. Qd2 {[%clk 0:01:22]}  Kh8 {[%clk 0:00:56]} 22. g4 {[%clk 0:00:36]}  Nc6 {[%clk 0:00:54]} 23. g5 {[%clk 0:00:36]}  hxg5 {[%clk 0:00:42]} 24. Bxg5 {[%clk 0:00:37]}  Bxd4 {[%clk 0:00:42]} 25. h6 {[%clk 0:00:37]}  Bxe5 {[%clk 0:00:42]} 26. Ng4 {[%clk 0:00:32]}  f6 {[%clk 0:00:11]} 27. hxg7+ {[%clk 0:00:32]}  Kxg7 {[%clk 0:00:12]} 28. Bh6+ {[%clk 0:00:32]}  Kh8 {[%clk 0:00:12]} 29. Bxf8 {[%clk 0:00:31]}  Qxf8 {[%clk 0:00:13]} 30. Rc1 {[%clk 0:00:25]}  Nd4 {[%clk 0:00:13]} 31. f4 {[%clk 0:00:22]}  Bxf4 {[%clk 0:00:14]} 32. Qxd4 {[%clk 0:00:19]}  Bxc1 {[%clk 0:00:14]} 33. Nxf6 {[%clk 0:00:17]}  Qg7 {[%clk 0:00:13]} 34. Qc3 {[%clk 0:00:11]}  Bg5 {[%clk 0:00:11]} 35. Qc8+ {[%clk 0:00:08]}  Bg8 {[%clk 0:00:12]} 36. Nxg8 {[%clk 0:00:03]}  Qxg8 {[%clk 0:00:12]} 37. Qxg8+ {[%clk 0:00:03]}  Kxg8 {[%clk 0:00:12]} 38. Kf2 {[%clk 0:00:03]}  Kf7 {[%clk 0:00:12]} 39. Ke2 {[%clk 0:00:03]}  Ke7 {[%clk 0:00:13]} 40. Kd3 {[%clk 0:00:03]}  Kd6 {[%clk 0:00:13]} 41. b3 {[%clk 0:00:04]}  e5 {[%clk 0:00:14]} 42. Bh3 {[%clk 0:00:04]}  e4+ {[%clk 0:00:14]} 43. Ke2 {[%clk 0:00:04]}  b4 {[%clk 0:00:14]} 44. Bf5 {[%clk 0:00:04]}  Ke5 {[%clk 0:00:14]} 45. Bh7 {[%clk 0:00:04]}  d4 {[%clk 0:00:15]} 46. Bg8 {[%clk 0:00:04]}  d3+ {[%clk 0:00:15]} 47. Kf2 {[%clk 0:00:04]}  Kd4 {[%clk 0:00:16]} 48. Bh7 {[%clk 0:00:04]}  e3+ {[%clk 0:00:17]} 49. Kf3 {[%clk 0:00:04]}  e2 {[%clk 0:00:17]} 50. Kf2 {[%clk 0:00:00]}  Bh4+ {[%clk 0:00:17]} 0-1

[Event "January 2 Late 2024"]
[Site "https://www.chess.com"]
[Date "2024.01.02"]
[Round "1"]
[White "Gabdushev, Ruslan"]
[Black "Karacsonyi, Gellert"]
[Result "1-0"]
[Board "96"]
[TimeControl "180+1"]
[WhiteFideId "4137833"]
[BlackFideId "764620"]
[WhiteElo "2409"]
[BlackElo "2730"]
[WhiteTeam "RUS"]
[BlackTeam "HUN"]
[WhiteClock "0:00:12"]
[BlackClock "0:01:56"]

1. c4 {[%clk 0:02:59]}  Nf6 {[%clk 0:02:58]} 2. g3 {[%clk 0:02:58]}  e6 {[%clk 0:02:57]} 3. Bg2 {[%clk 0:02:58]}  d5 {[%clk 0:02:58]} 4. Qc2 {[%clk 0:02:57]}  Be7 {[%clk 0:02:57]} 5. d3 {[%clk 0:02:54]}  O-O {[%clk 0:02:57]} 6. a3 {[%clk 0:02:51]}  a5 {[%clk 0:02:57]} 7. Nf3 {[%clk 0:02:50]}  Nc6 {[%clk 0:02:56]} 8. O-O {[%clk 0:02:50]}  Bd7 {[%clk 0:02:55]} 9. Re1 {[%clk 0:02:41]}  d4 {[%clk 0:02:52]} 10. e3 {[%clk 0:02:39]}  dxe3 {[%clk 0:02:52]} 11. Bxe3 {[%clk 0:02:38]}  e5 {[%clk 0:02:50]} 12. Nc3 {[%clk 0:02:35]}  Bf5 {[%clk 0:02:50]} 13. Rad1 {[%clk 0:02:32]}  Nd4 {[%clk 0:02:47]} 14. Bxd4 {[%clk 0:02:29]}  exd4 {[%clk 0:02:48]} 15. Nb5 {[%clk 0:02:26]}  c5 {[%clk 0:02:48]} 16. Nh4 {[%clk 0:02:23]}  Bg4 {[%clk 0:02:45]} 17. Rb1 {[%clk 0:02:18]}  Qd7 {[%clk 0:02:42]} 18. Qd2 {[%clk 0:02:07]}  Rfe8 {[%clk 0:02:41]} 19. Qf4 {[%clk 0:02:05]}  Nh5 {[%clk 0:02:41]} 20. Qc7 {[%clk 0:02:03]}  Bxh4 {[%clk 0:02:41]} 21. gxh4 {[%clk 0:02:02]}  Qf5 {[%clk 0:02:37]} 22. Be4 {[%clk 0:01:49]}  Qf6 {[%clk 0:02:33]} 23. Qxc5 {[%clk 0:01:39]}  Nf4 {[%clk 0:02:30]} 24. Qxd4 {[%clk 0:01:31]}  Nh3+ {[%clk 0:02:15]} 25. Kg2 {[%clk 0:01:26]}  Qxh4 {[%clk 0:02:14]} 26. f3 {[%clk 0:00:45]}  Nf4+ {[%clk 0:02:13]} 27. Kf1 {[%clk 0:00:31]}  Qxh2 {[%clk 0:02:09]} 28. fxg4 {[%clk 0:00:24]}  Rad8 {[%clk 0:01:54]} 29. Qf2 {[%clk 0:00:20]}  Qh1+ {[%clk 0:01:54]} 30. Bxh1 {[%clk 0:00:19]}  Nxd3 {[%clk 0:01:51]} 31. Rxe8+ {[%clk 0:00:18]}  Rxe8 {[%clk 0:01:52]} 32. Qe2 {[%clk 0:00:17]}  Rd8 {[%clk 0:01:50]} 33. Rd1 {[%clk 0:00:16]}  g6 {[%clk 0:01:50]} 34. Rxd3 {[%clk 0:00:15]}  Rf8 {[%clk 0:01:51]} 35. Qe5 {[%clk 0:00:15]}  f6 {[%clk 0:01:51]} 36. Bd5+ {[%clk 0:00:15]}  Kg7 {[%clk 0:01:51]} 37. Qe7+ {[%clk 0:00:14]}  Kh6 {[%clk 0:01:52]} 38. Qxf8+ {[%clk 0:00:14]}  Kg5 {[%clk 0:01:53]} 39. Rf3 {[%clk 0:00:13]}  f5 {[%clk 0:01:53]} 40. gxf5 {[%clk 0:00:13]}  Kg4 {[%clk 0:01:54]} 41. fxg6 {[%clk 0:00:12]}  hxg6 {[%clk 0:01:55]} 42. Qf4+ {[%clk 0:00:12]}  Kh5 {[%clk 0:01:56]} 43. Rh3# {[%clk 0:00:12]} 1-0

[Event "January 2 Late 2024"]
[Site "https://www.chess.com"]
[Date "2024.01.02"]
[Round "1"]
[White "Zeneli, Klendi"]
[Black "Lewtak, Damian"]
[Result "0-1"]
[Board "98"]
[TimeControl "180+1"]
[WhiteFideId "4706609"]
[BlackFideId "1141724"]
[WhiteElo "2405"]
[BlackElo "2726"]
[WhiteTeam "ALB"]
[BlackTeam "POL"]
[WhiteClock "0:00:03"]
[BlackClock "0:00:10"]

1. e4 {[%clk 0:02:58]}  c5 {[%clk 0:03:00]} 2. c3 {[%clk 0:02:58]}  Nf6 {[%clk 0:02:58]} 3. e5 {[%clk 0:02:58]}  Nd5 {[%clk 0:02:59]} 4. d4 {[%clk 0:02:58]}  d6 {[%clk 0:02:59]} 5. Nf3 {[%clk 0:02:52]}  cxd4 {[%clk 0:02:58]} 6. cxd4 {[%clk 0:02:51]}  e6 {[%clk 0:02:57]} 7. Bd3 {[%clk 0:02:50]}  Nc6 {[%clk 0:02:57]} 8. a3 {[%clk 0:02:48]}  Be7 {[%clk 0:02:54]} 9. Qe2 {[%clk 0:02:46]}  Qb6 {[%clk 0:02:49]} 10. Nc3 {[%clk 0:02:32]}  Nxc3 {[%clk 0:02:32]} 11. bxc3 {[%clk 0:02:32]}  dxe5 {[%clk 0:02:32]} 12. Nxe5 {[%clk 0:02:27]}  Nxe5 {[%clk 0:02:29]} 13. Qxe5 {[%clk 0:02:26]}  Bf6 {[%clk 0:02:29]} 14. Qh5 {[%clk 0:02:17]}  Bd7 {[%clk 0:02:14]} 15. O-O {[%clk 0:02:09]}  Bc6 {[%clk 0:02:13]} 16. Re1 {[%clk 0:02:03]}  h6 {[%clk 0:01:58]} 17. Rb1 {[%clk 0:01:58]}  Qd8 {[%clk 0:01:54]} 18. Rxe6+ {[%clk 0:01:36]}  Kf8 {[%clk 0:01:55]} 19. Re1 {[%clk 0:01:31]}  a6 {[%clk 0:01:39]} 20. Bc4 {[%clk 0:01:27]}  Qd7 {[%clk 0:01:35]} 21. Bf4 {[%clk 0:01:18]}  Rd8 {[%clk 0:01:21]} 22. Be5 {[%clk 0:01:04]}  g6 {[%clk 0:01:09]} 23. Qd1 {[%clk 0:00:54]}  Bxe5 {[%clk 0:01:05]} 24. Rxe5 {[%clk 0:00:55]}  Kg7 {[%clk 0:01:05]} 25. Qe2 {[%clk 0:00:51]}  Rhe8 {[%clk 0:01:03]} 26. Re1 {[%clk 0:00:50]}  Qd6 {[%clk 0:01:03]} 27. Re7 {[%clk 0:00:40]}  Rf8 {[%clk 0:00:44]} 28. h3 {[%clk 0:00:37]}  Rd7 {[%clk 0:00:35]} 29. Rxd7 {[%clk 0:00:34]}  Bxd7 {[%clk 0:00:27]} 30. Qe7 {[%clk 0:00:29]}  Qxe7 {[%clk 0:00:24]} 31. Rxe7 {[%clk 0:00:30]}  Bc6 {[%clk 0:00:24]} 32. d5 {[%clk 0:00:30]}  Kf6 {[%clk 0:00:20]} 33. Rc7 {[%clk 0:00:30]}  Ba4 {[%clk 0:00:18]} 34. Rxb7 {[%clk 0:00:30]}  Rc8 {[%clk 0:00:18]} 35. Rb4 {[%clk 0:00:22]}  Bd7 {[%clk 0:00:15]} 36. Bxa6 {[%clk 0:00:18]}  Rxc3 {[%clk 0:00:15]} 37. a4 {[%clk 0:00:17]}  Rc1+ {[%clk 0:00:14]} 38. Kh2 {[%clk 0:00:17]}  Rd1 {[%clk 0:00:15]} 39. Rb6+ {[%clk 0:00:11]}  Ke7 {[%clk 0:00:15]} 40. d6+ {[%clk 0:00:09]}  Kf6 {[%clk 0:00:13]} 41. a5 {[%clk 0:00:08]}  Rd5 {[%clk 0:00:13]} 42. Rb7 {[%clk 0:00:05]}  Rxa5 {[%clk 0:00:11]} 43. Rxd7 {[%clk 0:00:03]}  Rxa6 {[%clk 0:00:10]} 44. Kg3 {[%clk 0:00:03]}  Ra3+ {[%clk 0:00:10]} 45. f3 {[%clk 0:00:04]}  Rd3 {[%clk 0:00:10]} 46. Rd8 {[%clk 0:00:04]}  Rd2 {[%clk 0:00:11]} 47. Rh8 {[%clk 0:00:04]}  Rxd6 {[%clk 0:00:09]} 48. Rxh6 {[%clk 0:00:05]}  Rd8 {[%clk 0:00:09]} 49. Rh4 {[%clk 0:00:05]}  Kg7 {[%clk 0:00:10]} 50. Re4 {[%clk 0:00:05]}  Rc8 {[%clk 0:00:10]} 51. h4 {[%clk 0:00:05]}  Rc5 {[%clk 0:00:10]} 52. Kh3 {[%clk 0:00:05]}  Rb5 {[%clk 0:00:11]} 53. Rd4 {[%clk 0:00:06]}  Rb3 {[%clk 0:00:11]} 54. Kg4 {[%clk 0:00:06]}  Rb2 {[%clk 0:00:12]} 55. h5 {[%clk 0:00:06]}  Rxg2+ {[%clk 0:00:11]} 56. Kh3 {[%clk 0:00:06]}  Rf2 {[%clk 0:00:11]} 57. hxg6 {[%clk 0:00:06]}  Kxg6 {[%clk 0:00:08]} 58. Kg3 {[%clk 0:00:06]}  Rb2 {[%clk 0:00:08]} 59. Rg4+ {[%clk 0:00:07]}  Kf6 {[%clk 0:00:09]} 60. Rf4+ {[%clk 0:00:07]}  Ke7 {[%clk 0:00:09]} 61. Re4+ {[%clk 0:00:08]}  Kf8 {[%clk 0:00:10]} 62. Rf4 {[%clk 0:00:08]}  Rb5 {[%clk 0:00:10]} 63. Re4 {[%clk 0:00:09]}  Kg7 {[%clk 0:00:09]} 64. Rg4+ {[%clk 0:00:09]}  Kf8 {[%clk 0:00:09]} 65. Rf4 {[%clk 0:00:10]}  Rb6 {[%clk 0:00:09]} 66. Re4 {[%clk 0:00:10]}  f6 {[%clk 0:00:10]} 67. Rg4 {[%clk 0:00:09]}  Kf7 {[%clk 0:00:10]} 68. Rc4 {[%clk 0:00:09]}  Rb5 {[%clk 0:00:10]} 69. Rc7+ {[%clk 0:00:09]}  Kg6 {[%clk 0:00:11]} 70. Rc8 {[%clk 0:00:09]}  Rb1 {[%clk 0:00:10]} 71. Rc2 {[%clk 0:00:08]}  Kg5 {[%clk 0:00:10]} 72. Rc5+ {[%clk 0:00:08]}  f5 {[%clk 0:00:08]} 73. f4+ {[%clk 0:00:08]}  Kg6 {[%clk 0:00:09]} 74. Rc6+ {[%clk 0:00:08]}  Kh5 {[%clk 0:00:09]} 75. Rf6 {[%clk 0:00:07]}  Rb3+ {[%clk 0:00:09]} 76. Kg2 {[%clk 0:00:07]}  Kg4 {[%clk 0:00:10]} 77. Rg6+ {[%clk 0:00:06]}  Kxf4 {[%clk 0:00:10]} 78. Rg8 {[%clk 0:00:06]}  Rb2+ {[%clk 0:00:10]} 79. Kf1 {[%clk 0:00:07]}  Kf3 {[%clk 0:00:10]} 80. Kg1 {[%clk 0:00:07]}  f4 {[%clk 0:00:11]} 81. Rc8 {[%clk 0:00:07]}  Kg3 {[%clk 0:00:10]} 82. Rg8+ {[%clk 0:00:06]}  Kf3 {[%clk 0:00:10]} 83. Rc8 {[%clk 0:00:06]}  Rb7 {[%clk 0:00:10]} 84. Rc3+ {[%clk 0:00:06]}  Ke2 {[%clk 0:00:10]} 85. Kg2 {[%clk 0:00:05]}  Rg7+ {[%clk 0:00:10]} 86. Kh3 {[%clk 0:00:03]}  f3 {[%clk 0:00:10]} 0-1

[Event "January 2 Late 2024"]
[Site "https://www.chess.com"]
[Date "2024.01.02"]
[Round "1"]
[White "Schnaider, Ilan"]
[Black "Rego, Pedro Filipe"]
[Result "1-0"]
[Board "99"]
[TimeControl "180+1"]
[WhiteFideId "169013"]
[BlackFideId "1904310"]
[WhiteElo "2726"]
[BlackElo "2405"]
[WhiteTeam "ARG"]
[BlackTeam "POR"]
[WhiteClock "0:00:07"]
[BlackClock "0:00:14"]

1. e4 {[%clk 0:03:00]}  c5 {[%clk 0:02:45]} 2. Nf3 {[%clk 0:03:00]}  d6 {[%clk 0:02:45]} 3. Bb5+ {[%clk 0:02:59]}  Bd7 {[%clk 0:02:41]} 4. Bxd7+ {[%clk 0:02:57]}  Qxd7 {[%clk 0:02:42]} 5. O-O {[%clk 0:02:56]}  g6 {[%clk 0:02:43]} 6. c4 {[%clk 0:02:55]}  Bg7 {[%clk 0:02:43]} 7. d4 {[%clk 0:02:55]}  cxd4 {[%clk 0:02:43]} 8. Nxd4 {[%clk 0:02:56]}  Nc6 {[%clk 0:02:43]} 9. Be3 {[%clk 0:02:55]}  Nf6 {[%clk 0:02:43]} 10. f3 {[%clk 0:02:55]}  O-O {[%clk 0:02:44]} 11. Nc3 {[%clk 0:02:55]}  a6 {[%clk 0:02:42]} 12. Rc1 {[%clk 0:02:53]}  Rfc8 {[%clk 0:02:40]} 13. b3 {[%clk 0:02:52]}  Rab8 {[%clk 0:02:40]} 14. Qe2 {[%clk 0:02:40]}  Nxd4 {[%clk 0:02:36]} 15. Bxd4 {[%clk 0:02:41]}  b5 {[%clk 0:02:35]} 16. cxb5 {[%clk 0:02:28]}  axb5 {[%clk 0:02:35]} 17. Bxf6 {[%clk 0:02:24]}  Bxf6 {[%clk 0:02:34]} 18. Nd5 {[%clk 0:02:24]}  Bd4+ {[%clk 0:02:21]} 19. Kh1 {[%clk 0:02:22]}  e6 {[%clk 0:02:19]} 20. Qd2 {[%clk 0:02:16]}  Be5 {[%clk 0:02:09]} 21. Rxc8+ {[%clk 0:02:13]}  Rxc8 {[%clk 0:02:08]} 22. Nb6 {[%clk 0:02:13]}  Qc6 {[%clk 0:02:04]} 23. Nxc8 {[%clk 0:02:13]}  Qxc8 {[%clk 0:02:05]} 24. f4 {[%clk 0:02:13]}  Bf6 {[%clk 0:01:57]} 25. Rc1 {[%clk 0:02:04]}  Qa6 {[%clk 0:01:56]} 26. h3 {[%clk 0:01:55]}  Be7 {[%clk 0:01:45]} 27. e5 {[%clk 0:01:44]}  d5 {[%clk 0:01:25]} 28. Rc7 {[%clk 0:01:30]}  Bf8 {[%clk 0:01:16]} 29. Qc2 {[%clk 0:01:26]}  b4 {[%clk 0:01:16]} 30. Kg1 {[%clk 0:01:13]}  Qb6+ {[%clk 0:01:11]} 31. Kh2 {[%clk 0:01:00]}  Qe3 {[%clk 0:01:10]} 32. Qc1 {[%clk 0:00:52]}  Qe2 {[%clk 0:01:08]} 33. Rc2 {[%clk 0:00:48]}  Qe4 {[%clk 0:01:08]} 34. Qd2 {[%clk 0:00:39]}  h5 {[%clk 0:01:05]} 35. Rc8 {[%clk 0:00:28]}  h4 {[%clk 0:01:00]} 36. Qf2 {[%clk 0:00:28]}  Kg7 {[%clk 0:00:48]} 37. Qxh4 {[%clk 0:00:26]}  d4 {[%clk 0:00:19]} 38. Qf6+ {[%clk 0:00:18]}  Kg8 {[%clk 0:00:17]} 39. Rc7 {[%clk 0:00:19]}  Qf5 {[%clk 0:00:15]} 40. Qxf5 {[%clk 0:00:06]}  gxf5 {[%clk 0:00:16]} 41. Rd7 {[%clk 0:00:06]}  Bc5 {[%clk 0:00:15]} 42. Kg3 {[%clk 0:00:06]}  Kf8 {[%clk 0:00:16]} 43. Kf3 {[%clk 0:00:06]}  Ke8 {[%clk 0:00:16]} 44. Rc7 {[%clk 0:00:06]}  Bb6 {[%clk 0:00:16]} 45. Rc6 {[%clk 0:00:06]}  Ba7 {[%clk 0:00:16]} 46. Rc4 {[%clk 0:00:06]}  Kd7 {[%clk 0:00:16]} 47. Rxb4 {[%clk 0:00:06]}  Bc5 {[%clk 0:00:16]} 48. Rc4 {[%clk 0:00:07]}  Ba7 {[%clk 0:00:15]} 49. Ke2 {[%clk 0:00:07]}  Ke8 {[%clk 0:00:14]} 50. Kd3 {[%clk 0:00:07]} 1-0

[Event "January 2 Late 2024"]
[Site "https://www.chess.com"]
[Date "2024.01.02"]
[Round "1"]
[White "Karpov, Vadim"]
[Black "Blanco Ronquillo, Humberto L."]
[Result "1-0"]
[Board "100"]
[TimeControl "180+1"]
[WhiteFideId "4155025"]
[BlackFideId "3504239"]
[WhiteElo "2404"]
[BlackElo "2726"]
[WhiteTeam "RUS"]
[BlackTeam "CUB"]
[WhiteClock "0:00:17"]
[BlackClock "0:00:13"]

1. Nf3 {[%clk 0:03:00]}  d5 {[%clk 0:02:55]} 2. d4 {[%clk 0:02:59]}  Nf6 {[%clk 0:02:55]} 3. c4 {[%clk 0:02:59]}  e6 {[%clk 0:02:55]} 4. Nc3 {[%clk 0:02:58]}  c6 {[%clk 0:02:55]} 5. e3 {[%clk 0:02:53]}  Nbd7 {[%clk 0:02:54]} 6. Bd3 {[%clk 0:02:52]}  dxc4 {[%clk 0:02:54]} 7. Bxc4 {[%clk 0:02:52]}  b5 {[%clk 0:02:54]} 8. Be2 {[%clk 0:02:52]}  Bb7 {[%clk 0:02:55]} 9. O-O {[%clk 0:02:50]}  a6 {[%clk 0:02:55]} 10. e4 {[%clk 0:02:46]}  b4 {[%clk 0:02:51]} 11. e5 {[%clk 0:02:45]}  bxc3 {[%clk 0:02:49]} 12. exf6 {[%clk 0:02:45]}  gxf6 {[%clk 0:01:57]} 13. bxc3 {[%clk 0:02:44]}  c5 {[%clk 0:01:57]} 14. Rb1 {[%clk 0:02:36]}  Bc6 {[%clk 0:01:57]} 15. Bf4 {[%clk 0:02:30]}  Qa5 {[%clk 0:01:51]} 16. Qc2 {[%clk 0:02:08]}  Rc8 {[%clk 0:01:31]} 17. Qd2 {[%clk 0:01:44]}  Rg8 {[%clk 0:01:29]} 18. Bg3 {[%clk 0:01:43]}  h5 {[%clk 0:01:28]} 19. dxc5 {[%clk 0:01:17]}  Bxc5 {[%clk 0:01:21]} 20. Nd4 {[%clk 0:01:17]}  Be4 {[%clk 0:01:20]} 21. Bd3 {[%clk 0:01:13]}  Ba8 {[%clk 0:01:15]} 22. Nb3 {[%clk 0:01:04]}  Qa4 {[%clk 0:01:11]} 23. Nxc5 {[%clk 0:00:56]}  Nxc5 {[%clk 0:01:12]} 24. Bh7 {[%clk 0:00:55]}  Rg5 {[%clk 0:01:06]} 25. Rb4 {[%clk 0:00:49]}  Qc6 {[%clk 0:01:04]} 26. f3 {[%clk 0:00:45]}  Rd8 {[%clk 0:01:03]} 27. Qf4 {[%clk 0:00:31]}  e5 {[%clk 0:00:57]} 28. Qe3 {[%clk 0:00:31]}  Qd6 {[%clk 0:00:42]} 29. Bc2 {[%clk 0:00:28]}  Ne6 {[%clk 0:00:40]} 30. Ba4+ {[%clk 0:00:27]}  Kf8 {[%clk 0:00:38]} 31. Rd1 {[%clk 0:00:26]}  Qc7 {[%clk 0:00:35]} 32. Rxd8+ {[%clk 0:00:25]}  Qxd8 {[%clk 0:00:36]} 33. Qa7 {[%clk 0:00:19]}  Bd5 {[%clk 0:00:24]} 34. Rb8 {[%clk 0:00:18]}  Kg7 {[%clk 0:00:17]} 35. Rxd8 {[%clk 0:00:18]}  Nxd8 {[%clk 0:00:13]} 36. Qd7 {[%clk 0:00:17]} 1-0

[Event "January 2 Late 2024"]
[Site "https://www.chess.com"]
[Date "2024.01.02"]
[Round "1"]
[White "Senft, Sean"]
[Black "Bardyk, Artem"]
[Result "0-1"]
[Board "102"]
[TimeControl "180+1"]
[WhiteFideId "2044960"]
[BlackFideId "34349979"]
[WhiteElo "2404"]
[BlackElo "2719"]
[WhiteTeam "USA"]
[BlackTeam "RUS"]
[WhiteClock "0:00:11"]
[BlackClock "0:00:04"]

1. d4 {[%clk 0:03:00]}  d5 {[%clk 0:03:00]} 2. c4 {[%clk 0:02:59]}  e6 {[%clk 0:03:00]} 3. Nc3 {[%clk 0:02:59]}  Nf6 {[%clk 0:02:59]} 4. cxd5 {[%clk 0:02:59]}  Nxd5 {[%clk 0:02:59]} 5. Nxd5 {[%clk 0:02:58]}  exd5 {[%clk 0:02:59]} 6. Nf3 {[%clk 0:02:59]}  c6 {[%clk 0:02:59]} 7. Bg5 {[%clk 0:02:59]}  Be7 {[%clk 0:02:59]} 8. Bxe7 {[%clk 0:03:00]}  Qxe7 {[%clk 0:03:00]} 9. e3 {[%clk 0:03:00]}  O-O {[%clk 0:03:01]} 10. Bd3 {[%clk 0:03:00]}  Nd7 {[%clk 0:03:01]} 11. O-O {[%clk 0:03:01]}  Nf6 {[%clk 0:03:01]} 12. Ne5 {[%clk 0:02:58]}  a5 {[%clk 0:02:52]} 13. h3 {[%clk 0:02:59]}  Re8 {[%clk 0:02:49]} 14. Qf3 {[%clk 0:02:59]}  Be6 {[%clk 0:02:46]} 15. Rac1 {[%clk 0:02:55]}  Nd7 {[%clk 0:02:45]} 16. Nxd7 {[%clk 0:02:54]}  Bxd7 {[%clk 0:02:45]} 17. Bf5 {[%clk 0:02:54]}  Bxf5 {[%clk 0:02:44]} 18. Qxf5 {[%clk 0:02:55]}  h6 {[%clk 0:02:43]} 19. Rc3 {[%clk 0:02:48]}  a4 {[%clk 0:02:42]} 20. Rfc1 {[%clk 0:02:47]}  Qb4 {[%clk 0:02:39]} 21. Qc2 {[%clk 0:02:48]}  Ra6 {[%clk 0:02:36]} 22. b3 {[%clk 0:02:46]}  Rea8 {[%clk 0:02:34]} 23. bxa4 {[%clk 0:02:45]}  Rxa4 {[%clk 0:02:10]} 24. Rb3 {[%clk 0:02:43]}  Qe7 {[%clk 0:02:10]} 25. Qb1 {[%clk 0:02:15]}  R8a7 {[%clk 0:02:04]} 26. Rc2 {[%clk 0:02:16]}  Ra3 {[%clk 0:01:55]} 27. Rb6 {[%clk 0:02:08]}  R3a6 {[%clk 0:01:43]} 28. Rb3 {[%clk 0:01:35]}  b5 {[%clk 0:00:48]} 29. Rbc3 {[%clk 0:01:32]}  Qe4 {[%clk 0:00:47]} 30. Qc1 {[%clk 0:01:15]}  Rxa2 {[%clk 0:00:32]} 31. Rxa2 {[%clk 0:01:15]}  Rxa2 {[%clk 0:00:33]} 32. Rxc6 {[%clk 0:01:15]}  Qf5 {[%clk 0:00:29]} 33. Qe1 {[%clk 0:00:46]}  Rb2 {[%clk 0:00:19]} 34. Rc1 {[%clk 0:00:21]}  b4 {[%clk 0:00:16]} 35. Rd1 {[%clk 0:00:19]}  Qc2 {[%clk 0:00:14]} 36. Rc1 {[%clk 0:00:17]}  Qd3 {[%clk 0:00:10]} 37. Rd1 {[%clk 0:00:17]}  Qf5 {[%clk 0:00:07]} 38. Rc1 {[%clk 0:00:17]}  b3 {[%clk 0:00:06]} 39. Rd1 {[%clk 0:00:15]}  Rc2 {[%clk 0:00:05]} 40. Rb1 {[%clk 0:00:11]}  b2 {[%clk 0:00:06]} 41. Kh2 {[%clk 0:00:11]}  Qxf2 {[%clk 0:00:05]} 42. Qxf2 {[%clk 0:00:11]}  Rxf2 {[%clk 0:00:06]} 43. Kg3 {[%clk 0:00:11]}  Rc2 {[%clk 0:00:06]} 44. Kf3 {[%clk 0:00:10]}  f6 {[%clk 0:00:03]} 45. g4 {[%clk 0:00:10]}  Kf7 {[%clk 0:00:03]} 46. e4 {[%clk 0:00:11]}  Ke6 {[%clk 0:00:03]} 47. Ke3 {[%clk 0:00:12]}  Rc3+ {[%clk 0:00:03]} 48. Kf4 {[%clk 0:00:12]}  Rxh3 {[%clk 0:00:04]} 49. Rxb2 {[%clk 0:00:11]}  g5# {[%clk 0:00:04]} 0-1